bitfinex/quotes_SOLUSD_20250819
["timestamp","ask_amount","ask_price","bid_price","bid_amount"]
[1755624554902,26.0,178.67,178.65,0.7]
[1755624555102,11.86547897,178.66,178.64,0.06]
[1755624555443,0.56154537,178.65,178.64,0.06]
[1755624555803,26.0,178.67,178.64,11.94547897]
[1755624556008,0.56154537,178.69,178.65,11.88547897]
[1755624556337,3.79107593,178.7,178.67,11.18547897]
[1755624556525,0.03,178.7,178.68,0.7]
[1755624556722,0.03,178.7,178.69,11.18547897]
[1755624557523,0.03,178.7,178.69,0.7]
[1755624557695,0.03,178.7,178.69,11.88547897]
[1755624560146,0.03,178.7,178.69,12.02764054]
[1755624561151,0.03,178.7,178.69,11.88547897]
[1755624567035,0.03,178.7,178.69,0.7]
[1755624567233,0.03,178.7,178.69,11.88547897]
[1755624567673,0.03,178.7,178.66,0.7]
[1755624567848,0.03,178.7,178.69,11.18547897]
[1755624568254,0.03,178.7,178.69,11.88547897]
[1755624568456,0.03,178.7,178.69,7.18496562]
[1755624569380,0.71,178.7,178.64,0.90216157]
[1755624569567,0.71,178.7,178.68,7.18496562]
[1755624569775,0.03,178.7,178.69,7.18496562]
[1755624570159,0.71,178.7,178.69,7.18496562]
[1755624570370,0.03,178.7,178.69,7.18496562]
[1755624570563,0.03,178.7,178.69,7.88496562]
[1755624572038,0.03,178.7,178.69,8.02712719]
[1755624573053,0.03,178.72,178.7,0.14216157]
[1755624573258,0.03,178.73,178.72,26.14216157]
[1755624573775,0.03,178.73,178.72,34.04712719]
[1755624574364,0.03,178.73,178.72,38.03171631]
[1755624575400,0.03,178.73,178.72,37.88955474]
[1755624575888,0.03,178.73,178.72,11.88955474]
[1755624577900,0.03,178.73,178.72,11.16955474]
[1755624578108,0.7,178.73,178.66,0.72]
[1755624578288,0.7,178.73,178.7,11.16955474]
[1755624578601,0.7,178.73,178.66,41.56]
[1755624578602,0.67,178.72,178.66,41.56]
[1755624578806,0.67,178.72,178.66,40.84]
[1755624579099,0.03,178.73,178.7,11.16955474]
[1755624579273,0.03,178.73,178.71,11.16955474]
[1755624579473,0.67,178.72,178.67,0.72]
[1755624579675,1.23154537,178.71,178.67,11.16955474]
[1755624579900,0.67,178.7,178.66,11.16955474]
[1755624580073,11.73110011,178.71,178.66,11.16955474]
[1755624580274,0.67,178.69,178.66,11.16955474]
[1755624580582,0.56154537,178.71,178.67,11.16955474]
[1755624580890,1.23154537,178.71,178.67,11.16955474]
[1755624581088,0.67,178.71,178.68,11.16955474]
[1755624581271,0.03,178.73,178.7,11.16955474]
[1755624581483,0.03,178.73,178.71,11.16955474]
[1755624581683,0.03,178.73,178.69,11.88955474]
[1755624582672,0.03,178.73,178.69,11.16955474]
[1755624582876,0.7,178.73,178.69,11.16955474]
[1755624583501,0.67,178.72,178.68,11.16955474]
[1755624583677,0.67,178.72,178.67,11.88955474]
[1755624584181,0.03,178.73,178.68,11.88955474]
[1755624584392,0.67,178.72,178.68,11.16955474]
[1755624584700,0.03,178.73,178.68,11.16955474]
[1755624584881,0.03,178.73,178.68,11.88955474]
[1755624585201,0.7,178.73,178.68,11.88955474]
[1755624585404,0.03,178.73,178.68,11.16955474]
[1755624585721,0.7,178.73,178.68,11.88955474]
[1755624585908,0.03,178.73,178.69,11.88955474]
[1755624586206,0.03,178.73,178.7,11.88955474]
[1755624587090,0.03,178.73,178.71,11.88955474]
[1755624587294,0.03,178.73,178.7,11.16955474]
[1755624587469,0.03,178.73,178.72,11.88955474]
[1755624588916,0.03,178.73,178.72,12.03171631]
[1755624590121,0.03,178.73,178.72,26.86216157]
[1755624590433,0.03,178.73,178.72,38.03171631]
[1755624590596,0.03,178.73,178.72,51.62731032]
[1755624590795,0.03,178.73,178.72,53.86952532]
[1755624591026,0.03,178.73,178.72,51.62731032]
[1755624591211,0.03,178.73,178.72,53.86965132]
[1755624593699,0.03,178.73,178.72,51.62731032]
[1755624595835,0.03,178.73,178.72,92.44731032]
[1755624596528,0.03,178.73,178.72,88.45734596]
[1755624596916,0.03,178.73,178.72,74.86175195]
[1755624598911,0.03,178.73,178.72,67.68216157]
[1755624599120,0.03,178.73,178.72,74.84175195]
[1755624599514,0.03,178.73,178.72,34.04175195]
[1755624599722,0.03,178.73,178.72,74.12175195]
[1755624599915,0.7,178.73,178.72,40.8]
[1755624600113,0.03,178.73,178.72,47.97959038]
[1755624600311,0.7,178.73,178.66,0.72]
[1755624600519,7.17959038,178.71,178.65,7.23959038]
[1755624600810,0.56154537,178.72,178.65,7.23959038]
[1755624600811,0.67,178.7,178.69,2.242718]
[1755624601128,0.67,178.72,178.69,7.17959038]
[1755624601306,0.67,178.72,178.7,7.17959038]
[1755624601508,0.67,178.72,178.69,7.17959038]
[1755624601925,0.03,178.73,178.7,7.17959038]
[1755624602126,0.03,178.73,178.71,7.17959038]
[1755624603233,0.72,178.73,178.71,7.17959038]
[1755624603410,0.72,178.73,178.68,40.8]
[1755624603811,0.72,178.73,178.7,7.17959038]
[1755624604042,0.72,178.73,178.71,7.17959038]
[1755624604217,0.03,178.73,178.72,7.17959038]
[1755624604626,0.03,178.73,178.71,47.97959038]
[1755624604824,0.03,178.73,178.72,7.17959038]
[1755624608349,0.72,178.73,178.71,40.8]
[1755624609060,0.03,178.73,178.71,7.17959038]
[1755624609360,0.03,178.73,178.68,7.17959038]
[1755624609361,0.69,178.72,178.68,7.17959038]
[1755624609566,0.03,178.73,178.68,47.97959038]
[1755624609774,0.69,178.71,178.68,47.97959038]
[1755624610074,0.69,178.7,178.67,7.17959038]
[1755624610246,7.17959038,178.69,178.65,0.06]
[1755624610572,0.69,178.68,178.65,0.06]
[1755624610750,0.69,178.67,178.65,0.06]
[1755624611128,0.69,178.66,178.65,0.06]
[1755624611333,26.0,178.71,178.65,7.23959038]
[1755624611334,26.69,178.71,178.65,7.23959038]
[1755624611563,0.69,178.71,178.67,7.17959038]
[1755624611933,33.17959038,178.72,178.67,7.17959038]
[1755624612237,33.17959038,178.72,178.68,7.17959038]
[1755624612238,26.69,178.72,178.68,7.17959038]
[1755624612451,0.69,178.71,178.68,7.17959038]
[1755624612759,0.69,178.7,178.65,0.06]
[1755624612966,0.69,178.69,178.66,7.17959038]
[1755624613345,0.69,178.71,178.65,0.06]
[1755624613661,0.69,178.71,178.66,7.17959038]
[1755624613953,26.56154537,178.72,178.67,7.17959038]
[1755624614156,0.03,178.73,178.68,0.67]
[1755624614341,0.03,178.73,178.7,7.17959038]
[1755624614666,0.03,178.73,178.72,7.17959038]
[1755624615459,7.89959038,178.73,178.67,47.97959038]
[1755624615628,7.89959038,178.73,178.68,7.17959038]
[1755624615629,0.72,178.73,178.68,7.17959038]
[1755624615832,0.69,178.72,178.68,7.17959038]
[1755624616029,0.03,178.73,178.67,40.8]
[1755624616232,0.69,178.71,178.68,7.17959038]
[1755624616451,0.69,178.71,178.67,47.97959038]
[1755624616638,7.77113575,178.73,178.68,7.17959038]
[1755624616847,0.69,178.72,178.67,40.8]
[1755624617049,0.69,178.72,178.68,7.17959038]
[1755624617240,0.69,178.71,178.67,40.8]
[1755624617441,26.69,178.72,178.68,7.17959038]
[1755624618060,1.25154537,178.72,178.68,7.17959038]
[1755624618433,0.69,178.71,178.67,40.8]
[1755624618633,0.69,178.7,178.67,40.8]
[1755624618953,0.69,178.7,178.66,7.17959038]
[1755624619346,0.69,178.69,178.65,7.23959038]
[1755624619776,0.69,178.68,178.65,0.06]
[1755624620987,7.17959038,178.7,178.65,0.06]
[1755624621279,0.69,178.69,178.65,0.06]
[1755624621852,0.56154537,178.7,178.65,0.06]
[1755624622056,29.76274735,178.71,178.68,7.17959038]
[1755624622297,26.0,178.71,178.67,7.17959038]
[1755624622469,26.0,178.71,178.66,7.84959038]
[1755624622668,26.69,178.71,178.66,7.84959038]
[1755624623501,26.56154537,178.72,178.67,7.17959038]
[1755624623796,0.03,178.73,178.71,7.17959038]
[1755624624005,0.03,178.73,178.72,7.17959038]
[1755624624190,0.03,178.73,178.72,7.84959038]
[1755624624769,0.03,178.73,178.72,7.99175195]
[1755624625081,0.03,178.74,178.73,0.14216157]
[1755624625286,0.03,178.74,178.73,47.58734596]
[1755624626368,0.03,178.74,178.73,33.99175195]
[1755624626565,0.03,178.74,178.73,47.58734596]
[1755624626768,0.03,178.77,178.76,26.14216157]
[1755624626984,0.03,178.77,178.76,74.10175195]
[1755624627185,0.03,178.77,178.76,74.77175195]
[1755624627384,0.03,178.77,178.76,88.36734596]
[1755624628900,0.03,178.77,178.76,81.18775558]
[1755624629066,0.03,178.77,178.76,47.95959038]
[1755624630362,0.03,178.77,178.76,7.17959038]
[1755624632867,0.03,178.77,178.76,7.84959038]
[1755624633201,0.03,178.77,178.76,10.23384195]
[1755624634266,0.03,178.77,178.76,7.17959038]
[1755624634878,0.03,178.77,178.76,7.85959038]
[1755624635478,0.03,178.77,178.76,7.17959038]
[1755624636289,0.03,178.77,178.76,7.85959038]
[1755624636768,0.03,178.77,178.76,7.17959038]
[1755624637676,0.03,178.77,178.75,40.76]
[1755624637874,0.03,178.77,178.76,7.17959038]
[1755624639583,0.72,178.77,178.75,40.76]
[1755624639894,0.03,178.77,178.76,7.17959038]
[1755624641774,0.03,178.77,178.76,7.85959038]
[1755624642176,0.03,178.77,178.76,8.00175195]
[1755624643312,0.03,178.77,178.76,47.59734596]
[1755624645635,0.03,178.77,178.76,49.83905896]
[1755624646933,0.03,178.79,178.77,13.73775558]
[1755624647106,0.03,178.79,178.78,61.51518439]
[1755624647301,0.03,178.79,178.78,62.19518439]
[1755624648056,0.03,178.81,178.8,0.14216157]
[1755624648208,0.03,178.83,178.82,0.14216157]
[1755624648408,0.03,178.83,178.82,48.72175195]
[1755624649133,0.03,178.83,178.82,50.96296195]
[1755624649669,0.03,178.83,178.82,90.55855596]
[1755624650028,0.1,178.86,178.84,0.14216157]
[1755624650245,0.1,178.86,178.85,61.49518439]
[1755624650444,0.1,178.86,178.85,62.17518439]
[1755624650752,0.79,178.95,178.86,13.73775558]
[1755624650956,0.79,178.95,178.93,7.17959038]
[1755624651259,0.79,178.95,178.86,13.73775558]
[1755624651260,0.1,178.95,178.94,7.17959038]
[1755624651436,0.1,178.95,178.93,7.17959038]
[1755624651753,0.1,178.95,178.89,26.14216157]
[1755624651939,0.69,178.94,178.93,7.17959038]
[1755624652260,0.69,178.94,178.93,40.72]
[1755624652629,0.69,178.94,178.91,47.89959038]
[1755624652937,0.69,178.94,178.91,40.72]
[1755624653438,0.69,178.93,178.91,40.72]
[1755624653627,0.69,178.92,178.91,40.72]
[1755624655464,7.17959038,178.94,178.91,40.72]
[1755624655643,7.86959038,178.94,178.91,40.72]
[1755624655828,0.69,178.93,178.91,40.72]
[1755624656023,0.69,178.92,178.91,40.72]
[1755624656540,0.69,178.94,178.91,40.72]
[1755624656755,0.69,178.93,178.91,40.72]
[1755624658648,7.86959038,178.93,178.91,40.72]
[1755624658855,0.69,178.93,178.91,40.72]
[1755624659034,7.86959038,178.93,178.91,40.72]
[1755624659751,7.86959038,178.92,178.91,40.72]
[1755624659954,0.69,178.92,178.91,40.72]
[1755624660257,26.1,178.95,178.91,40.72]
[1755624660258,7.17959038,178.94,178.91,40.72]
[1755624660468,7.17959038,178.93,178.91,40.72]
[1755624660627,0.69,178.94,178.85,0.14216157]
[1755624660628,7.86959038,178.92,178.85,7.85959038]
[1755624660850,157.69,178.94,178.86,41.36]
[1755624661038,7.17959038,178.93,178.88,7.17959038]
[1755624661232,7.86959038,178.93,178.88,0.68]
[1755624661445,0.79,178.95,178.9,7.17959038]
[1755624661663,0.79,178.95,178.93,7.17959038]
[1755624661664,0.1,178.95,178.93,7.17959038]
[1755624662148,0.1,178.95,178.92,7.17959038]
[1755624662456,0.03,178.94,178.92,7.85959038]
[1755624662626,0.03,178.94,178.93,0.68]
[1755624663659,0.03,178.94,178.92,7.17959038]
[1755624663854,0.03,178.94,178.93,7.17959038]
[1755624664379,0.03,178.94,178.93,0.71]
[1755624664533,0.03,178.94,178.93,8.03175195]
[1755624664733,0.03,178.94,178.93,21.62734596]
[1755624665135,0.1,178.95,178.93,21.62734596]
[1755624665136,0.1,178.95,178.94,13.73775558]
[1755624665352,0.1,178.95,178.94,62.30734596]
[1755624665667,0.1,178.95,178.94,48.71175195]
[1755624665834,0.1,178.95,178.94,41.53216157]
[1755624666162,0.1,178.95,178.94,40.68]
[1755624666459,0.1,178.95,178.94,48.71175195]
[1755624666766,0.1,178.95,178.91,0.71]
[1755624666944,0.1,178.95,178.92,40.68]
[1755624667266,0.1,178.95,178.93,0.71]
[1755624667565,0.1,178.95,178.94,0.71]
[1755624667948,0.1,178.95,178.94,7.88959038]
[1755624668460,0.1,178.95,178.94,34.03175195]
[1755624668976,0.1,178.95,178.93,7.17959038]
[1755624669275,0.7,178.94,178.93,40.66]
[1755624669483,0.1,178.95,178.93,40.66]
[1755624669773,0.1,178.95,178.93,41.37]
[1755624670076,0.7,178.94,178.93,40.66]
[1755624670251,0.1,178.95,178.93,40.66]
[1755624670451,0.1,178.95,178.94,0.71]
[1755624670666,7.97959038,178.95,178.92,40.66]
[1755624670837,7.97959038,178.95,178.88,26.14216157]
[1755624670838,7.17959038,178.93,178.91,40.66]
[1755624671044,7.17959038,178.94,178.89,7.88959038]
[1755624671346,0.1,178.95,178.9,41.37]
[1755624671551,0.8,178.95,178.9,40.66]
[1755624671757,7.17959038,178.92,178.9,40.66]
[1755624672065,0.8,178.95,178.9,40.66]
[1755624672264,7.17959038,178.94,178.9,40.66]
[1755624672574,7.87959038,178.94,178.9,40.66]
[1755624672757,7.17959038,178.93,178.9,40.66]
[1755624672961,7.27959038,178.95,178.91,0.71]
[1755624673164,0.1,178.95,178.91,0.71]
[1755624673475,0.1,178.95,178.94,7.17959038]
[1755624673633,0.1,178.95,178.94,48.69175195]
[1755624674266,0.1,178.95,178.93,40.66]
[1755624674856,7.27959038,178.95,178.93,40.66]
[1755624675036,0.1,178.95,178.93,40.66]
[1755624675901,7.97959038,178.95,178.93,40.66]
[1755624676172,7.87959038,178.94,178.89,7.88959038]
[1755624676380,7.17959038,178.92,178.88,7.20959]
[1755624676566,7.17959038,178.89,178.83,7.17959038]
[1755624676744,7.17959038,178.89,178.84,8.58959]
[1755624676944,7.17959038,178.88,178.84,41.37]
[1755624677336,0.7,178.87,178.82,47.899591]
[1755624677537,7.17959038,178.86,178.82,41.43]
[1755624678046,0.7,178.89,178.83,7.88959038]
[1755624678566,7.17959038,178.88,178.83,0.71]
[1755624678745,0.7,178.88,178.83,0.71]
[1755624679066,7.87959038,178.88,178.83,0.71]
[1755624679264,7.17959038,178.87,178.83,0.71]
[1755624679472,7.17959038,178.87,178.82,40.72]
[1755624679681,7.17959038,178.86,178.82,40.72]
[1755624679872,7.17959038,178.87,178.82,47.89959038]
[1755624680069,7.17959038,178.87,178.83,0.71]
[1755624680487,0.7,178.93,178.86,7.17959038]
[1755624680782,26.7,178.93,178.87,40.66]
[1755624680952,7.17959038,178.92,178.87,47.83959038]
[1755624681153,0.1,178.95,178.9,7.17959038]
[1755624681371,0.1,178.95,178.9,0.71]
[1755624681554,0.1,178.95,178.87,40.80216157]
[1755624681555,7.17959038,178.93,178.87,48.54959038]
[1755624681769,7.87959038,178.92,178.87,40.66]
[1755624681972,7.17959038,178.89,178.84,7.17959038]
[1755624682191,26.56154537,178.94,178.82,26.77]
[1755624682192,26.0,178.93,178.87,7.17959038]
[1755624682404,0.1,178.95,178.9,7.17959038]
[1755624682694,0.1,178.95,178.91,7.17959038]
[1755624682858,7.27959038,178.95,178.9,7.88959038]
[1755624683062,7.97959038,178.95,178.9,7.88959038]
[1755624683362,7.17959038,178.91,178.88,40.66]
[1755624683754,7.17959038,178.92,178.88,40.66]
[1755624685090,0.7,178.91,178.88,40.66]
[1755624685564,7.17959038,178.92,178.88,40.66]
[1755624685761,7.87959038,178.92,178.88,40.66]
[1755624686088,0.66154537,178.95,178.88,40.66]
[1755624686089,7.17959038,178.9,178.88,40.66]
[1755624686459,0.7,178.94,178.88,41.37]
[1755624686660,7.17959038,178.92,178.88,41.37]
[1755624687886,0.1,178.95,178.91,7.17959038]
[1755624688096,7.27959038,178.95,178.91,0.71]
[1755624688269,7.97959038,178.95,178.89,7.88959038]
[1755624688588,7.27959038,178.95,178.9,7.88959038]
[1755624688891,0.1,178.95,178.91,7.88959038]
[1755624689069,7.27959038,178.95,178.91,0.71]
[1755624689386,0.1,178.95,178.92,7.88959038]
[1755624689573,0.1,178.95,178.92,0.71]
[1755624690283,0.1,178.95,178.94,7.17959038]
[1755624690473,0.1,178.95,178.94,7.88959038]
[1755624691964,0.1,178.95,178.94,8.03175195]
[1755624692262,0.1,178.95,178.94,21.62734596]
[1755624692889,0.03,178.97,178.96,39.59559401]
[1755624693170,0.03,178.99,178.96,87.55734596]
[1755624693478,0.03,178.99,178.98,20.77518439]
[1755624693885,0.03,178.99,178.98,21.45518439]
[1755624694081,0.03,178.99,178.98,21.59734596]
[1755624696617,0.03,178.99,178.98,48.49959038]
[1755624696992,0.03,178.99,178.98,40.64]
[1755624698410,0.73,178.99,178.96,40.64]
[1755624698720,0.03,178.99,178.98,7.17959038]
[1755624699220,0.03,178.99,178.98,7.85959038]
[1755624699589,0.03,178.99,178.98,21.59734596]
[1755624700215,0.03,178.99,178.98,8.00175195]
[1755624700931,0.03,178.99,178.98,7.85959038]
[1755624701422,0.03,178.99,178.98,7.17959038]
[1755624701919,0.03,178.99,178.96,40.64]
[1755624702108,0.03,178.99,178.98,7.17959038]
[1755624702306,0.03,178.99,178.98,11.14199981]
[1755624703398,0.03,178.99,178.96,51.78199981]
[1755624704101,0.03,178.99,178.96,40.64]
[1755624704102,0.73,178.99,178.96,40.64]
[1755624704722,0.03,178.99,178.96,51.78199981]
[1755624704937,0.03,178.99,178.97,11.82199981]
[1755624705110,0.03,178.99,178.96,41.32]
[1755624705437,0.03,178.99,178.96,51.78199981]
[1755624705618,0.03,178.99,178.98,11.14199981]
[1755624706238,0.03,178.99,178.98,11.82199981]
[1755624706999,0.03,178.99,178.98,52.44199981]
[1755624707209,0.03,178.99,178.98,51.76199981]
[1755624707408,0.03,178.99,178.98,52.44199981]
[1755624708005,0.03,178.99,178.98,41.3]
[1755624708218,0.03,178.99,178.98,40.62]
[1755624708419,0.03,178.99,178.98,41.3]
[1755624708936,0.03,178.99,178.98,51.76199981]
[1755624709526,0.03,178.99,178.98,40.62]
[1755624712258,0.03,178.99,178.98,41.3]
[1755624712838,0.03,178.99,178.98,40.62]
[1755624713420,0.03,178.99,178.98,51.76199981]
[1755624713660,0.03,178.99,178.98,40.62]
[1755624718526,0.73,178.99,178.98,40.62]
[1755624718764,0.03,178.99,178.98,40.62]
[1755624719266,11.87199981,178.99,178.96,40.6]
[1755624719562,0.73,178.99,178.96,40.6]
[1755624720305,0.7,178.98,178.95,0.06]
[1755624720610,0.7,178.98,178.95,40.66]
[1755624720767,0.03,178.99,178.95,0.06]
[1755624720967,0.7,178.97,178.95,0.06]
[1755624721189,0.7,178.98,178.95,0.06]
[1755624721387,0.73,178.99,178.95,0.06]
[1755624721695,0.7,178.98,178.95,0.06]
[1755624722176,0.03,178.99,178.95,0.06]
[1755624722375,0.03,178.99,178.96,7.1642706]
[1755624722779,0.7,178.98,178.95,0.06]
[1755624722979,0.7,178.97,178.95,0.06]
[1755624723189,0.72,178.97,178.95,0.06]
[1755624723795,0.72,178.96,178.95,0.06]
[1755624724309,7.8842706,178.96,178.95,0.06]
[1755624724511,0.72,178.96,178.95,0.06]
[1755624724679,0.59154537,178.99,178.95,0.06]
[1755624724680,7.8842706,178.98,178.95,0.06]
[1755624724883,0.72,178.98,178.95,0.06]
[1755624725107,7.8842706,178.98,178.95,0.06]
[1755624725603,0.03,178.99,178.96,7.1642706]
[1755624725772,0.03,178.99,178.97,7.1642706]
[1755624725969,0.03,178.99,178.97,7.8742706]
[1755624727465,0.03,178.99,178.95,41.37]
[1755624727672,0.72,178.98,178.95,40.66]
[1755624727898,0.72,178.97,178.95,0.06]
[1755624728773,7.1642706,178.98,178.95,0.06]
[1755624728988,0.72,178.97,178.95,0.06]
[1755624729709,0.72,178.96,178.95,0.06]
[1755624730376,37.17867354,178.98,178.95,0.06]
[1755624730806,0.03,178.98,178.95,0.06]
[1755624731570,0.03,178.98,178.96,11.85867354]
[1755624731904,0.03,178.98,178.95,11.20867354]
[1755624732108,0.03,178.98,178.96,0.71]
[1755624732328,0.03,178.98,178.95,11.91867354]
[1755624732733,0.03,178.98,178.95,11.20867354]
[1755624733034,0.03,178.98,178.95,0.77]
[1755624733035,11.17867354,178.98,178.95,0.77]
[1755624733424,11.17867354,178.98,178.95,0.06]
[1755624733630,11.14867354,178.96,178.95,0.06]
[1755624734013,0.03,178.98,178.95,0.06]
[1755624734236,0.75,178.98,178.95,0.06]
[1755624734417,11.14867354,178.96,178.95,0.06]
[1755624734610,0.72,178.96,178.95,0.06]
[1755624735037,11.86867354,178.96,178.95,0.06]
[1755624735540,0.03,178.98,178.95,0.06]
[1755624735541,0.72,178.97,178.95,0.06]
[1755624735723,11.14867354,178.96,178.95,0.06]
[1755624736130,0.72,178.97,178.95,0.06]
[1755624736329,11.14867354,178.96,178.95,0.06]
[1755624736638,11.14867354,178.97,178.95,0.06]
[1755624736823,0.03,178.98,178.95,0.06]
[1755624737027,11.14867354,178.97,178.95,0.06]
[1755624737828,11.14867354,178.96,178.95,0.06]
[1755624738550,11.86867354,178.96,178.95,0.06]
[1755624739137,0.72,178.96,178.95,0.06]
[1755624739305,11.86867354,178.96,178.95,0.06]
[1755624739505,11.14867354,178.96,178.95,0.06]
[1755624740454,0.75,178.98,178.95,0.06]
[1755624740650,11.14867354,178.96,178.95,0.06]
[1755624741163,0.72,178.97,178.95,0.06]
[1755624741328,11.14867354,178.96,178.95,0.06]
[1755624741650,11.17867354,178.98,178.95,0.77]
[1755624742053,0.03,178.98,178.95,0.77]
[1755624742563,0.03,178.98,178.96,0.71]
[1755624743240,0.03,178.98,178.95,11.20867354]
[1755624743587,0.03,178.98,178.97,11.14867354]
[1755624743935,0.03,178.98,178.97,11.85867354]
[1755624744967,0.03,178.98,178.97,0.71]
[1755624745968,0.03,178.98,178.97,11.85867354]
[1755624746561,0.03,178.98,178.97,0.71]
[1755624746761,0.03,178.98,178.95,0.06]
[1755624747076,0.03,178.98,178.96,11.85867354]
[1755624747379,0.03,178.98,178.95,0.06]
[1755624747380,0.03,178.98,178.97,11.85867354]
[1755624747578,0.03,178.98,178.97,0.71]
[1755624748152,0.03,178.98,178.95,0.06]
[1755624748549,0.03,178.98,178.95,0.77]
[1755624749066,11.14867354,178.96,178.95,0.06]
[1755624749480,11.86867354,178.96,178.95,0.06]
[1755624749850,0.72,178.96,178.95,0.06]
[1755624750283,11.14867354,178.96,178.95,0.06]
[1755624750586,11.86867354,178.96,178.95,0.06]
[1755624751109,25.46426755,178.96,178.95,0.06]
[1755624751260,29.22367101,178.96,178.95,0.06]
[1755624751465,29.36583258,178.96,178.95,0.06]
[1755624752255,48.71417835,178.96,178.95,0.06]
[1755624752584,51.39004433,178.96,178.95,0.06]
[1755624752781,55.82060744,178.96,178.95,0.06]
[1755624752952,51.39004433,178.96,178.95,0.06]
[1755624753152,55.78693031,178.96,178.95,0.06]
[1755624753955,51.39004433,178.96,178.95,0.06]
[1755624754578,51.24788276,178.96,178.95,0.06]
[1755624754966,51.39004433,178.96,178.95,0.06]
[1755624755870,44.21715904,178.96,178.95,0.06]
[1755624756077,51.39004433,178.96,178.95,0.06]
[1755624756276,44.21715904,178.96,178.95,0.06]
[1755624756577,51.39004433,178.96,178.95,0.06]
[1755624757095,25.39004433,178.96,178.95,0.06]
[1755624757908,13.73775558,178.95,178.93,0.06]
[1755624758063,65.66942813,178.94,178.93,0.06]
[1755624758468,65.66942813,178.94,178.91,0.06]
[1755624758469,0.14216157,178.92,178.91,0.06]
[1755624758688,5.1331104,178.92,178.91,0.06]
[1755624758895,12.30599569,178.92,178.91,0.06]
[1755624760094,19.47888098,178.92,178.91,0.06]
[1755624760288,12.30599569,178.92,178.91,0.06]
[1755624761591,19.47888098,178.92,178.91,0.06]
[1755624761786,33.07447499,178.92,178.91,0.06]
[1755624762181,39.59559401,178.91,178.9,0.06]
[1755624762513,39.73775558,178.89,178.88,0.06]
[1755624762815,39.73775558,178.85,178.84,0.06]
[1755624763006,91.25004433,178.85,178.84,0.06]
[1755624763179,84.74715904,178.85,178.84,0.06]
[1755624763524,91.92004433,178.85,178.84,0.06]
[1755624763977,13.73775558,178.84,178.8,0.06]
[1755624764181,0.14216157,178.81,178.8,0.06]
[1755624764485,74.45659223,178.81,178.8,0.06]
[1755624764678,75.12659223,178.81,178.8,0.06]
[1755624764872,67.28370694,178.81,178.8,0.06]
[1755624765116,74.45659223,178.81,178.8,0.06]
[1755624765707,33.17288529,178.81,178.8,0.72]
[1755624765915,0.56154537,178.85,178.8,0.72]
[1755624766077,7.17288529,178.85,178.8,7.89288529]
[1755624766274,7.17288529,178.86,178.81,7.83288529]
[1755624766601,7.17288529,178.87,178.82,7.83288529]
[1755624766778,47.75288529,178.88,178.83,0.66]
[1755624766969,7.17288529,178.87,178.83,0.66]
[1755624767195,7.17288529,178.87,178.8,0.06]
[1755624767396,0.56154537,178.86,178.83,0.66]
[1755624767676,7.17288529,178.84,178.81,0.66]
[1755624767870,7.17288529,178.82,178.8,0.06]
[1755624768076,7.17288529,178.81,178.8,0.72]
[1755624768401,26.0,178.82,178.8,0.72]